Workbook

Sheet Loan Serviceability Worksheet
C3: Loan Serviceability Calculator v2.2
C6: Applicant/s details | D6: Applicant 1 | F6: Applicant 2 | H6: Applicant 3 | J6: Applicant 4
C8: Applicant Name/s
C10: Status (Couple or Single)
C12: New BankVic Loan Structure | H12: Select a number of New Loans →
C14: Floor rate 7.25% or Interest rate plus 3.00% is used for calculating Loan Repayments
D16: Loan Amount (inc. Redraw) | F16: Loan Terms (months) (For I/O, Enter remaining term after I/O expiry) | H16: Interest Rate % (For Fixed & I/O Enter Revert Rate) | J16: Assessment Repayments (monthly) | L16: Actual Loan Repayments (monthly)
C18: Loan 1 | J18: =IFERROR(INT(-PMT((IF(H18+3%<7.25%,7.25%,H18+3%))/12,F18,D18,0)+1),"") ->  | L18: =IFERROR(INT(-PMT(H18/12,F18,D18,0)+1),"") -> 
C20: Loan 2 | J20: =IFERROR(INT(-PMT((IF(H20+3%<7.25%,7.25%,H20+3%))/12,F20,D20,0)+1),"") ->  | L20: =IFERROR(INT(-PMT(H20/12,F20,D20,0)+1),"") -> 
C22: Loan 3 | J22: =IFERROR(INT(-PMT((IF(H22+3%<7.25%,7.25%,H22+3%))/12,F22,D22,0)+1),"") ->  | L22: =IFERROR(INT(-PMT(H22/12,F22,D22,0)+1),"") -> 
C24: Loan 4 | J24: =IFERROR(INT(-PMT((IF(H24+3%<7.25%,7.25%,H24+3%))/12,F24,D24,0)+1),"") ->  | L24: =IFERROR(INT(-PMT(H24/12,F24,D24,0)+1),"") -> 
C26: Total Loan Amount | D26: =D18+D20+D22+D24 -> 0 | J26: =SUM(J18,J20,J22,J24) -> 0 | L26: =SUM(L18,L20,L22,L24) -> 0
C28: Security Details | I28: Select a number of Securities →
D30: Address | H30: Postcode | J30: Security Value
C31: Security 1
C33: Security 2
C35: Security 3
C37: Security 4
C39: Total Security Value | J39: =SUM(J31,J33,J35,J37) -> 0
C41: Total LVR (%) | J41: =IFERROR(D26/J39,"") -> 
C43: Gross Annual Income | D43: Applicant 1 | F43: Applicant 2 | H43: Applicant 3 | J43: Applicant 4
C45: Base Annual Salary (PAYG)
C47: Bonus/Commission/Overtime (Enter a total amount you wish to use for assessment)
C49: Other Income (taxable)
C51: Untaxed Allowable Income | L51: =SUM(D51,F51,H51,J51) -> 0
C53: Total Gross Income | D53: =IFERROR(SUM(D45,D47,D49),"") -> 0 | F53: =IFERROR(SUM(F45,F47,F49),"") -> 0 | H53: =IFERROR(SUM(H45,H47,H49),"") -> 0 | J53: =IFERROR(SUM(J45,J47,J49),"") -> 0 | L53: =SUM(D53,F53,H53,J53,L51) -> 0
C55: Total Net Income | D55: =IFERROR((D53-(IF(D53>18200,VLOOKUP(D53,Tax,2)+((D53-VLOOKUP(D53,Tax,1))*(VLOOKUP(D53,Tax,3)))+D53*0.02,0)))+D51,"") -> 0 | F55: =IFERROR((F53-(IF(F53>18200,VLOOKUP(F53,Tax,2)+((F53-VLOOKUP(F53,Tax,1))*(VLOOKUP(F53,Tax,3)))+F53*0.02,0)))+F51,"") -> 0 | H55: =IFERROR((H53-(IF(H53>18200,VLOOKUP(H53,Tax,2)+((H53-VLOOKUP(H53,Tax,1))*(VLOOKUP(H53,Tax,3)))+H53*0.02,0)))+H51,"") -> 0 | J55: =IFERROR((J53-(IF(J53>18200,VLOOKUP(J53,Tax,2)+((J53-VLOOKUP(J53,Tax,1))*(VLOOKUP(J53,Tax,3)))+J53*0.02,0)))+J51,"") -> 0
C57: Rental Income | I57: Select a number of Rental Income→
D59: Property Address | H59: Rental Type | J59: Annual Rental Income | L59: Allowable Rental Income
C61: Property 1 | L61: =IF(H61="",0,IF(H61="Permanent Term",J61*0.8,IF(H61="Short Term",J61*0.7,IF(H61="Serviced Apartment/AirBnB",J61*0.7)))) -> 0
C63: Property 2 | L63: =IF(H63="",0,IF(H63="Permanent Term",J63*0.8,IF(H63="Short Term",J63*0.7,IF(H63="Serviced Apartment/AirBnB",J63*0.7)))) -> 0
C65: Property 3 | L65: =IF(H65="",0,IF(H65="Permanent Term",J65*0.8,IF(H65="Short Term",J65*0.7,IF(H65="Serviced Apartment/AirBnB",J65*0.7)))) -> 0
C67: Property 4 | L67: =IF(H67="",0,IF(H67="Permanent Term",J67*0.8,IF(H67="Short Term",J67*0.7,IF(H67="Serviced Apartment/AirBnB",J67*0.7)))) -> 0
C69: Income Allocation to applicants (%) | D69: Applicant 1 | F69: Applicant 2 | H69: Applicant 3 | J69: Applicant 4
C71: Property 1
C73: Property 2 | L73: =SUM(D73,F73,H73,J73) -> 0
C75: Property 3 | L75: =SUM(D75,F75,H75,J75) -> 0
C77: Property 4 | L77: =SUM(D77,F77,H77,J77) -> 0
C79: Total Rental Income | D79: =IFERROR((L61*D71)+(L63*D73)+(L65*D75)+(L67*D77),"") -> 0 | F79: =IFERROR((L61*F71)+(L63*F73)+(L65*F75)+(L67*F77),"") -> 0 | H79: =IFERROR((L61*H71)+(L63*H73)+(L65*H75)+(L67*H77),"") -> 0 | J79: =IFERROR((L61*J71)+(L63*J73)+(L65*J75)+(L67*J77),"") -> 0 | L79: =SUM(D79,F79,H79,J79) -> 0
C81: Self Employed Income
C88: Net Profit Before Tax
C90: Director's fees
C92: Salaries & Wages
C94: Allowable Addback
C96: Total Allowable Income | D96: =D88+D90+D92+D94 -> 0 | F96: =F88+F90+F92+F94 -> 0 | H96: =H88+H90+H92+H94 -> 0 | J96: =J88+J90+J92+J94 -> 0
C98: Assessable Income | D98: =AVERAGE(D96,F96)*0.3 -> 0 | H98: =AVERAGE(H96,J96)*0.3 -> 0
D100: Applicant 1 | F100: Applicant 2 | H100: Applicant 3 | J100: Applicant 4
C102: Income Allocation to applicants (%)
C104: Total Self Employed Income | D104: =D98*D102 -> 0 | F104: =F98*F102 -> 0 | H104: =H98*H102 -> 0 | J104: =J98*J102 -> 0
C106: All Other Liability (Combined) | H106: Select a number of Existing Home Loans→
C108: Floor rate 7.25% or Interest rate plus 3.00% is used for calculating Loan Repayments
D110: Loan Amount / Limit (inc. Redraw) | F110: Loan Terms (months) | H110: Interest Rate % | J110: Loan Repayments (monthly)
C112: Existing Home Loan 1 | J112: =IFERROR(INT(-PMT((IF(H112+3%<7.25%,7.25%,H112+3%))/12,F112,D112,0)+1),"") -> 
C114: Existing Home Loan 2 | J114: =IFERROR(INT(-PMT((IF(H114+3%<7.25%,7.25%,H114+3%))/12,F114,D114,0)+1),"") -> 
C116: Existing Home Loan 3 | J116: =IFERROR(INT(-PMT((IF(H116+3%<7.25%,7.25%,H116+3%))/12,F116,D116,0)+1),"") -> 
C118: Existing Home Loan 4 | J118: =IFERROR(INT(-PMT((IF(H118+3%<7.25%,7.25%,H118+3%))/12,F118,D118,0)+1),"") -> 
C120: Personal Loan
C122: Lease/Car Loan
C124: Existing Credit Card or Overdraft Limit | J124: =D124*0.0382 -> 0
C126: New Credit Card or Overdraft Limit | J126: =D126*0.0382 -> 0
C128: HELP / HECS
C130: Other Debts
C132: Afterpay / Paypal / BuyNowPayLater | F132: =IF(F124="","",IF(F124<5.05%,5.05%,F124+3%)) ->  | H132: =IF(H124="","",IF(H124<5.05%,5.05%,H124+3%)) -> 
C134: Rent / Board Commitments
C136: Total Monthly Commitments | J136: =SUM(J112,J114,J116,J118,J120,J122,J124,J126,J128,J130,J134) -> 0 | L136: =J136*12 -> 0
C138: Monthly Living Expenses (combined)
C140: Household 1 | F140: Household 2
C142: Household Type | F142: Household Type
C144: Number of Dependants | F144: Number of Dependants
C146: Declared General Expenses | F146: Declared General Expenses
C148: Declared Other Expenses | F148: Declared Other Expenses
C150: Calculated HEM Expenses | D150: =IFERROR(IF($L$53>=200000,(VLOOKUP((D142&D144),Variables!$I$12:$J$44,2,FALSE)/12)*1.15,IF($L$53>=150000,(VLOOKUP((D142&D144),Variables!$I$12:$J$44,2,FALSE)/12)*1.1,(VLOOKUP((D142&D144),Variables!$I$12:$J$44,2,FALSE)/12)*1.05)),"") ->  | F150: Calculated HEM Expense | J150: =IFERROR(IF($L$53>=200000,(_xlfn.XLOOKUP((J142&J144),Variables!$I$9:$I$44,Variables!$J$9:$J$44)/12)*1.15,IF($L$53>=150000,(_xlfn.XLOOKUP((J142&J144),Variables!$I$9:$I$44,Variables!$J$9:$J$44)/12)*1.1,(_xlfn.XLOOKUP((J142&J144),Variables!$I$9:$I$44,Variables!$J$9:$J$44)/12)*1.05)),"") -> 
C152: Calculated Living Expense | D152: =IF(D146<D150,D150,D146) -> 0 | F152: Calculated Living Expense | J152: =IF(J146<J150,J150,J146) -> 0
C154: Total Assessed Living Expense | D154: =IFERROR(SUM(D152,D148),"") -> 0 | F154: Total Assessed Living Expense | J154: =IFERROR(SUM(J152,J148),"") -> 0
C156: Serviceability Results
C158: Total Gross Income | D158: =SUM(D53,F53,H53,J53,D104,F104,H104,J104,L51,(L79/0.8)) -> 0 | F158: NDI | J158: =D160-D166 -> 0
C160: Total Net Income | D160: =SUM(D55,F55,H55,J55,L79) -> 0 | F160: NDI Ratio | J160: =IFERROR(J158/D164,"") ->  | L160: =IFERROR(IF(J158/D164>=1,"PASS", IF(J158/D164<1,"REFER - Outside Serviceability Guidelines")),"") -> 
C162: Total Existing/New Loan Limits | D162: =SUM(D26,D112,D114,D116,D118,D120,D122,D124,D126,D128,D130,D132) -> 0 | F162: Net Monthly Surplus | J162: =IF(J158="","",((J158-D164)/12)) -> 0 | L162: =IFERROR(IF(D18="","",IF(J162>=200,"PASS",IF(J162<200,"REFER - Outside Serviceability Guidelines"))),"") -> 
C164: Total Existing/New Commitments | D164: =SUM((J26*12),L136) -> 0 | F164: Debt To Income (DTI) | J164: =IFERROR(D162/D158,"") ->  | L164: =IF(J164="","",IF(J164<=6,"PASS",IF(J164>6,"REFER - Outside Serviceability Guidelines"))) -> 
C166: Total Living Expenses | D166: =SUM(D154,J154)*12 -> 0
C170: Calculations are estimates and should be taken as a guide only based on the accuracy of the information entered and is not an offer of finance. Calculations assume that the interest rate remains unchanged for the full term of the loan. BankVic lending criteria applies to applications submitted.

Sheet YTD_Income_Calculator
C3: YTD Income Calculator version 1
E6: Gross Annual Income
E8: Base Annual Salary (PAYG)
E10: YTD Income (from pay slip)
E12: Start Date
E14: End Date
E16: Number of Days | F16: =IF(F12="","",IFERROR(F14-F12,"")) -> 
E18: Number of Weeks | F18: =IFERROR(F16/7,"") -> 
E20: Average Per Week | F20: =IFERROR(F10/F18,"") -> 
E22: Annualised Income | F22: =IFERROR(F20*52,"") -> 
E24: Total Overtime & Allowances | F24: =IFERROR(F22-F8,"") -> 
E26: % of Overtime & Allowances Used
E28: $ of Overtime & Allowances Used | F28: =IFERROR(F24*F26,"") -> 
E30: Total Gross Income Used (Base Annual Salary + Overtime/Allowances Used) | F30: =IFERROR(F8+F28,"") -> 

Sheet Variables (hidden)
B1: Applicant details
B2: Status | C2: Couple with | I2: Date Today | K2: =TODAY() -> 2025-04-22
B3: Single | C3: N/A | D3: N/A | E3: N/A | F3: N/A | I3: Date End of Month | K3: =EOMONTH(K2,360) -> 2055-04-30
B4: Couple | C4: Applicant 2 | D4: Applicant 1 | E4: Applicant 1 | F4: Applicant 1 | I4: Maturity Date | K4: =DATE(YEAR(K3),MONTH(K3),DAY(K2)) -> 2055-04-22
C5: Applicant 3 | D5: Applicant 3 | E5: Applicant 2 | F5: Applicant 2
C6: Applicant 4 | D6: Applicant 4 | E6: Applicant 4 | F6: Applicant 3
B8: Rental Type | I8: HEM | J8: 0 | K8: 1 | L8: 2 | M8: 3 | N8: 4 | O8: 5 | P8: 6 | Q8: 7 | R8: 8 | S8: 9 | T8: 10
B9: Permanent Term | I9: Single Adult Without a Home Loan | J9: =$J$47 -> 19136 | K9: =$J9+$J$52 -> 31460 | L9: =$J9+$J$53 -> 34684 | M9: =$J9+$J$54 -> 39676 | N9: =$J9+$J$55 -> 44668 | O9: =$J9+$J$56 -> 49660 | P9: =J9+($J$53+($J$57*4)) -> 54652 | Q9: =J9+($J$53+($J$57*5)) -> 59644 | R9: =J9+($J$53+($J$57*6)) -> 64636 | S9: =J9+($J$53+($J$57*7)) -> 69628 | T9: =J9+($J$53+($J$57*8)) -> 74620
B10: Short Term | I10: Single Adult With a Home Loan | J10: =J48 -> 24480 | K10: =$J10+$J$52 -> 36804 | L10: =$J10+$J$53 -> 40028 | M10: =$J10+$J$54 -> 45020 | N10: =$J10+$J$55 -> 50012 | O10: =$J10+$J$56 -> 55004 | P10: =J10+($J$53+($J$57*4)) -> 59996 | Q10: =J10+($J$53+($J$57*5)) -> 64988 | R10: =J10+($J$53+($J$57*6)) -> 69980 | S10: =J10+($J$53+($J$57*7)) -> 74972 | T10: =J10+($J$53+($J$57*8)) -> 79964
B11: Serviced Apartment/Airbnb | I11: Couple (or single with partner) | J11: =J49 -> 40872 | K11: =$J11+$J$52 -> 53196 | L11: =$J11+$J$53 -> 56420 | M11: =$J11+$J$54 -> 61412 | N11: =$J11+$J$55 -> 66404 | O11: =$J11+$J$56 -> 71396 | P11: 76388 | Q11: 81380 | R11: 86372 | S11: 91364 | T11: 96356
I12: =Variables!I9&Variables!$J$8 -> Single Adult Without a Home Loan0 | J12: =J9 -> 19136
I13: =Variables!I10&Variables!$J$8 -> Single Adult With a Home Loan0 | J13: =J10 -> 24480
B14: Number | I14: =Variables!I11&Variables!$J$8 -> Couple (or single with partner)0 | J14: =J11 -> 40872
B15: 1 | I15: =I9&$K$8 -> Single Adult Without a Home Loan1 | J15: =K9 -> 31460
B16: 2 | I16: =I10&$K$8 -> Single Adult With a Home Loan1 | J16: =K10 -> 36804
B17: 3 | I17: Couple (or single with partner)1 | J17: 53196
B18: 4 | I18: =I9&$L$8 -> Single Adult Without a Home Loan2 | J18: =L9 -> 34684
I19: =I10&$L$8 -> Single Adult With a Home Loan2 | J19: =L10 -> 40028
I20: Couple (or single with partner)2 | J20: 56420
I21: =I9&$M$8 -> Single Adult Without a Home Loan3 | J21: =M9 -> 39676
B22: Income Tax Rates - 2024-2025 | I22: =I10&$M$8 -> Single Adult With a Home Loan3 | J22: =M10 -> 45020
B23: Taxable Income | C23: Tax | D23: Marginal Rate | I23: Couple (or single with partner)3 | J23: 61412
B24: 1 | C24: 0 | D24: 0 | I24: =I9&$N$8 -> Single Adult Without a Home Loan4 | J24: =N9 -> 44668
B25: 18201 | C25: 0.16 | D25: 0.16 | I25: =I10&$N$8 -> Single Adult With a Home Loan4 | J25: =N10 -> 50012
B26: 45001 | C26: 4288 | D26: 0.3 | I26: Couple (or single with partner)4 | J26: 66404
B27: 135001 | C27: 31288 | D27: 0.37 | I27: =I9&$O$8 -> Single Adult Without a Home Loan5 | J27: =O9 -> 49660
B28: 190001 | C28: 51638 | D28: 0.45 | I28: =I10&$O$8 -> Single Adult With a Home Loan5 | J28: =O10 -> 55004
I29: Couple (or single with partner)5 | J29: 71396
I30: =$I9&$P$8 -> Single Adult Without a Home Loan6 | J30: =P9 -> 54652
I31: =$I10&$P$8 -> Single Adult With a Home Loan6 | J31: =P10 -> 59996
I32: Couple (or single with partner)6 | J32: =P11 -> 76388
I33: =$I9&$Q$8 -> Single Adult Without a Home Loan7 | J33: =Q9 -> 59644
I34: =$I10&$Q$8 -> Single Adult With a Home Loan7 | J34: =Q10 -> 64988
I35: Couple (or single with partner)7 | J35: =Q11 -> 81380
I36: =I9&R8 -> Single Adult Without a Home Loan8 | J36: =R9 -> 64636
I37: =I10&R8 -> Single Adult With a Home Loan8 | J37: =R10 -> 69980
I38: =I11&R8 -> Couple (or single with partner)8 | J38: =R11 -> 86372
I39: =I9&S8 -> Single Adult Without a Home Loan9 | J39: =S9 -> 69628
I40: =I10&S8 -> Single Adult With a Home Loan9 | J40: =S10 -> 74972
I41: =I11&S8 -> Couple (or single with partner)9 | J41: =S11 -> 91364
I42: =I9&T8 -> Single Adult Without a Home Loan10 | J42: =T9 -> 74620
I43: =I10&T8 -> Single Adult With a Home Loan10 | J43: =T10 -> 79964
I44: =I11&T8 -> Couple (or single with partner)10 | J44: =T11 -> 96356
I46: HEM table - TO UPDATE
I47: Single Adult Without a Home Loan | J47: 19136
I48: Single Adult With a Home Loan | J48: 24480
I49: Couple (or single with partner) | J49: 40872
I50: Each Additional Adult | J50: 19136
I51: Each Additional Couple | J51: 40872
I52: 1 Dependent Child | J52: 12324
I53: 2 Dependent Child | J53: 15548
I54: 3 Dependent Child | J54: =J53+J57 -> 20540
I55: 4 Dependent Child | J55: =J53+(J57*2) -> 25532
I56: 5 Dependent Child | J56: =J53+(J57*3) -> 30524
I57: Each Dependent Child in excess of 2 | J57: 4992

Sheet User_Guidelines
A1: BankVic Loan Serviceability Calculator User Guidelines
A3: Applicant/s details
A4: Applicant/s Full Name | B4: Indicate the Full name of all applicants. If application is in a company name, include the surnames of the Directors.
A5: Status (Couple or Single) | B5: The status of each applicant: Single or Couple with other applicant in the same application. For Company Applicants, the field is not mandatory.
A6: New BankVic Loan Structure
A7: Loan Amount (inc. Redraw) | B7: The limit of the new loan amount including redraw amount.
A8: Loan Terms (months) | B8: Enter a number of months e.g. 360 for a 30 year loan
A9: Interest Rate % | B9: Interest rate applicable to the loan in percent
A10: Loan Repayments (monthly) | B10: Loan Repayments based on Assessment Interest rate
A11: Security Details
A12: Address | B12: Address of each security is securing the new loan
A13: Postcode | B13: Postcode of each security is securing the new loan
A14: Security Value | B14: The value of the security that is securing the new loan
A15: Total LVR (%) | B15: Loan Value Ratio that is calculated dividing total loan amount to total security value
A16: Gross Annual Income
A17: Base Annual Salary (PAYG) | B17: Gross income earned by the applicant
A18: YTD Income (from pay slip)
A19: Start Date
A20: End Date
A21: Number of Days
A22: Number of Weeks
A23: Average Per Week
A24: Annualised Income
A25: Total Overtime & Allowances
A26: % of Overtime & Allowances Used
A27: $ of Overtime & Allowances Used
A28: Base Annual Salary + Overtime & Allowances Used
A29: Bonus/Commission/Overtime | B29: Non base income
A30: Other Income (taxable) | B30: Other income earned by the applicant
A31: Untaxed Allowable Income | B31: Untaxed allowable income
A34: Rental Income
A35: Property Address | B35: Address of each investment property
A36: Rental Type | B36: Income sourced from Permanent, Short term or Serviced apartment/Airbnb
A37: Annual Rental Income | B37: Annual rental income sourced from Permanent, Short term or Serviced apartment/Airbnb
A38: Allowable Rental Income | B38: The acceptable annual rental income based on BankVic policy
A39: Self Employed Income
A40: Self Employed Income ($)
A45: All Other Liabilities
A46: Existing Loan - Loan Limit ($) | B46: The current limit of the loan
A47: Loan Amount (inc. Redraw) | B47: The limit of the new loan amount including redraw amount.
A48: Loan Terms (months) | B48: Enter a number of months e.g. 360 for a 30 year loan
A49: Interest Rate % | B49: Interest rate applicable to the loan in percent
A50: Loan Repayments (monthly) | B50: Loan Repayments based on Assessment Interest rate
A51: Personal Loan | B51: Personal Loans details
A52: Lease/Car Loan | B52: Lease/Car Loans details
A53: Existing Credit Card | B53: Total credit card limits for all applicants.
A54: After pay / PayPal / BuyNowPayLater | B54: Current limit of the facilities
A55: New Credit Card or Overdraft Limit | B55: Monthly rent or board expenses. A minimum value required per adult when living with family rent free.
A56: HELP / HECS | B56: Based on HECS / HELP Tables, balance multiplies by % in line with Income Threshold. For further information regarding of % of HECS / HELP, please refer to a HECS/HELP link below.
B57: HECS / HELP Tables
A58: Rent / Board Commitments | B58: Rent / Board Commitments details
A59: Other Debts | B59: Other Debts details
A60: Monthly Living Expenses
A61: Declared General Expenses ($) | B61: Include Clothing and personal care, Groceries, Medical and health, Pet care, Recreation and entertainment, Telephone, internet, pay tv and media streaming subscriptions, Transport, Primary Residence Costs (Including Insurance), Childcare, Higher Education & Vocational Training (Excluding HECS/HELP), Public or Government Primary & Secondary Education Costs, General Insurance (Excluding Life, Health, Sickness and Personal Accident)
A62: Declared Other Expenses ($) | B62: Include Body corporate fees, strata fees and land tax on owner occupied principal place of residence, Investment property costs (including insurance), Secondary residence running costs, Private & Non-Government Education, Child and spousal maintenance, Other Insurances, Personal Insurance (Life, Health, Sickness and Personal Accident) and any other monthly expenses not included elsewhere.
A63: Calculated HEM Expenses ($) | B63: Living expenses calculated by applying pre-determined amounts to the number of couples, singles and dependants.
A64: Calculated Living Expenses ($) | B64: This is the maximum of Basic living expense and living expenses calculated by applying pre-determined amounts to the number of couples, singles and dependants associated with the loan application plus the Ongoing living expense.
A65: Serviceability Results
A66: NDI (Net Disposal Income) | B66: Result is calculated by taking the customers net surplus income minus the total living expenses
A67: NDI Ratio | B67: Result is calculated as the ratio between the net disposal income and total existing/new commitments. The NDI ratio should be greater than 1.00 to be passed.
A68: Net Monthly Surplus | B68: Result is calculated by subtracting the net disposal income from total existing/new commitments and dividing by 12. The net monthly surplus should be greater than $200.00 to be passed.
A69: DTI (Debt To Income) | B69: Result is calculated by dividing a total of existing/new liabilities to a total of income. The DTI should be less than 6 to be passed.

Sheet Administration (hidden)
C2: Administration - Version & Change Control v1.0
B6: Date updated | C6: Worksheet | D6: New Version | E6: Changes | F6: Updated by
B7: 2023-06-09 | C7: Loan Serviceability Worksheet | D7: 1.1 | E7: HEM update | F7: Sophie Ahn
B8: 2023-08-02 | C8: Loan Serviceability Worksheet | D8: 1.2 | E8: Fixed formula for new credit card and hide Household type for Single adult without HL | F8: Sophie Ahn
B9: 2023-09-04 | C9: Variables | D9: 1.3 | E9: HEM update | F9: Sophie Ahn
B10: 2023-09-06 | C10: Loan Serviceability Worksheet | D10: 1.3 | E10: Disable Household Type 2 for HEM | F10: Sophie Ahn
B11: 2023-11-20 | C11: Variables | D11: 1.4 | E11: HEM update | F11: Sophie Ahn
B12: 2024-03-21 | C12: Loan Serviceability Worksheet | D12: 1.5 | E12: Rewording assessed repayment to assessment repayment | F12: Sophie Ahn
B13: 2024-03-21 | C13: Loan Serviceability Worksheet | D13: 1.5 | E13: Bonus/Overtime metric changed to 100% | F13: Sophie Ahn
B14: 2024-03-21 | C14: Loan Serviceability Worksheet | D14: 1.5 | E14: Rewording Fail to Refer | F14: Sophie Ahn
B15: 2024-03-21 | C15: Loan Serviceability Worksheet | D15: 1.5 | E15: Enhanced formual for DTI to factor 100% rental income as per NG metrics | F15: Sophie Ahn
B16: 2024-03-21 | C16: Variables | D16: 1.5 | E16: Replaced HEM formula to vlookup from xlooup | F16: Sophie Ahn
B17: 2024-03-21 | C17: Variables | D17: 1.5 | E17: HEM update | F17: Sophie Ahn
B18: 2024-06-20 | C18: Variables | D18: 1.6 | E18: Tax Rates 2024-25 updated | F18: Sophie Ahn
B19: 2024-06-20 | C19: Loan Serviceability Worksheet | D19: 1.6 | E19: Adjust Tax Metrics to capture NIL Tax for income $0 to $18,200. | F19: Sophie Ahn
B20: 2024-06-20 | C20: Variables | D20: 1.6 | E20: HEM update | F20: Sophie Ahn
B21: 2024-07-18 | C21: Loan Serviceability Worksheet | D21: 1.7 | E21: Adjustment to correct Net income not adding onto Gross and taxed & DTI metrics to accommodate this adjustment | F21: Sophie Ahn
B22: 2024-07-31 | C22: Loan Serviceability Worksheet | D22: 1.8 | E22: Updated BankVic logo | F22: Sophie Ahn
B23: 2024-10-15 | C23: Loan Serviceability Worksheet | D23: 1.9 | E23: HEM update | F23: Sophie Ahn
B24: 2024-12-03 | C24: Loan Serviceability Worksheet | D24: 2 | E24: Rewording Loan Terms and Interest Rate field to Loan Terms (months) (For I/O, Enter remaining term after I/O expiry) & Interest Rate % (For Fixed & I/O Enter Revert Rate) | F24: Sophie Ahn
B25: 2025-02-21 | C25: Loan Serviceability Worksheet | D25: 2.1 | E25: HEM update - Effective date - 4/3/2025 | F25: Sophie Ahn
B26: 2025-04-17 | C26: User_Guidelines | D26: 2.2 | E26: Modified the wording in Monthly Living Expenses | F26: Sophie Ahn
